bitfinex-derivatives/quotes_SOLF0:USTF0_20241029
["timestamp","ask_amount","ask_price","bid_price","bid_amount"]
[1730243562668,13.37763596,179.66,179.58,1.2586]
[1730243563567,2.7838,179.64,179.59,2.7844]
[1730243565372,2.7842,179.61,179.57,2.7847]
[1730243566267,2.7841,179.62,179.57,2.7847]
[1730243568475,2.7841,179.62,179.54,6.714]
[1730243568665,2.7841,179.62,179.58,2.7846]
[1730243568866,13.37763596,179.63,179.54,6.714]
[1730243569065,2.784,179.62,179.58,2.7845]
[1730243574573,4.08,179.64,179.57,8.56430131]
[1730243574773,3.5569,179.67,179.58,8.56430131]
[1730243574977,8.56430131,179.63,179.58,8.56430131]
[1730243575672,4.08,179.66,179.58,8.56430131]
[1730243575873,8.56430131,179.63,179.58,8.56430131]
[1730243576176,8.56430131,179.62,179.6,2.7843]
[1730243576378,8.56430131,179.61,179.56,8.56430131]
[1730243576568,8.56430131,179.6,179.55,8.56430131]
[1730243576771,8.56430131,179.6,179.58,2.7846]
[1730243578381,8.56430131,179.6,179.55,8.56430131]
[1730243578581,3.5569,179.67,179.55,2.785]
[1730243578582,8.56430131,179.58,179.55,2.785]
[1730243579077,8.56430131,179.57,179.55,2.785]
[1730243581083,8.56430131,179.56,179.53,2.7853]
[1730243581478,8.56430131,179.56,179.51,245.25903969]
[1730243581683,8.56430131,179.56,179.54,2.7853]
[1730243582985,8.56430131,179.56,179.51,245.25903969]
[1730243583192,8.56430131,179.56,179.54,2.7852]
[1730243583875,11.34930131,179.56,179.53,2.7854]
[1730243584883,8.56430131,179.56,179.53,2.7854]
[1730243585781,8.56430131,179.56,179.54,2.7852]
[1730243589188,8.56430131,179.55,179.54,2.7852]
[1730243590588,8.56430131,179.55,179.5,8.56430131]
[1730243591485,8.56430131,179.53,179.48,12.64430131]
[1730243591692,8.56430131,179.53,179.51,2.7856]
[1730243592387,8.56430131,179.52,179.47,9.85330131]
[1730243592593,8.56430131,179.5,179.46,1.2892]
[1730243592891,8.56430131,179.5,179.47,2.7862]
[1730243593085,8.56430131,179.49,179.43,8.56430131]
[1730243593488,8.56430131,179.49,179.47,2.7863]
[1730243593689,11.38664717,179.49,179.47,2.7863]
[1730243593890,4.08,179.5,179.45,8.56430131]
[1730243594090,4.08,179.5,179.46,2.7864]
[1730243594289,4.08,179.5,179.45,8.56430131]
[1730243594988,4.08,179.5,179.47,2.7862]
[1730243595397,12.64430131,179.5,179.47,2.7862]
[1730243595786,12.64430131,179.5,179.48,2.7862]
[1730243599099,2.77700094,179.49,179.42,8.56430131]
[1730243599289,8.56430131,179.47,179.42,8.56430131]
[1730243599495,8.56430131,179.47,179.45,2.7865]
[1730243601090,8.56430131,179.47,179.46,2.7865]
[1730243602094,2.78508821,179.48,179.46,2.7865]
[1730243602295,8.56430131,179.47,179.46,2.7865]
[1730243602495,4.08,179.51,179.46,8.56430131]
[1730243602693,8.56430131,179.51,179.46,8.56430131]
[1730243603097,8.56430131,179.51,179.49,2.7859]
[1730243603691,8.56430131,179.5,179.49,2.7859]
[1730243604598,8.56430131,179.5,179.44,8.56430131]
[1730243604799,8.56430131,179.48,179.44,8.56430131]
[1730243605190,8.56430131,179.48,179.47,2.7863]
[1730243607393,8.56430131,179.48,179.43,4.08]
[1730243607592,8.56430131,179.46,179.41,11.06160131]
[1730243608001,8.56430131,179.46,179.44,2.7868]
[1730243609901,8.56430131,179.46,179.42,2.787]
[1730243609902,8.56430131,179.45,179.42,2.787]
[1730243610206,8.56430131,179.45,179.41,2.4973]
[1730243610400,8.56430131,179.45,179.42,2.7871]
[1730243610590,8.56430131,179.45,179.41,1.2764]
[1730243612101,8.56430131,179.45,179.42,2.7871]
[1730243612305,8.56430131,179.43,179.42,2.7871]
[1730243612804,8.56430131,179.43,179.36,1.337]
[1730243613000,8.56430131,179.4,179.36,1.337]
[1730243613403,8.56430131,179.4,179.39,2.7875]
[1730243616805,4.08,179.44,179.41,2.7871]
[1730243616996,8.56430131,179.42,179.41,2.7871]
[1730243618107,8.56430131,179.42,179.39,2.7876]
[1730243618307,8.56430131,179.4,179.36,1.337]
[1730243618603,8.56430131,179.38,179.33,8.56430131]
[1730243620008,8.56430131,179.38,179.3,3.8089]
[1730243620208,8.56430131,179.36,179.31,8.56430131]
[1730243620406,8.56430131,179.36,179.3,3.8089]
[1730243620603,8.56430131,179.36,179.31,8.56430131]
[1730243621313,8.56430131,179.36,179.35,2.7882]
[1730243621516,4.08,179.37,179.34,8.56430131]
[1730243621905,4.08,179.37,179.36,2.7881]
[1730243624616,8.56430131,179.38,179.37,2.7879]
[1730243625514,8.56430131,179.38,179.3,3.8089]
[1730243625812,8.56430131,179.34,179.3,3.8089]
[1730243626918,8.56430131,179.34,179.33,2.7885]
[1730243627320,8.56430131,179.34,179.27,8.56430131]
[1730243627523,8.56430131,179.32,179.27,8.56430131]
[1730243628020,8.56430131,179.32,179.31,2.7888]
[1730243631117,8.56430131,179.32,179.3,2.7889]
[1730243631311,8.56430131,179.31,179.3,2.7889]
[1730243631718,8.56430131,179.32,179.31,2.7888]
[1730243632024,8.56430131,179.34,179.29,8.56430131]
[1730243632617,8.56430131,179.34,179.33,2.7885]
[1730243632819,8.56430131,179.34,179.26,8.56430131]
[1730243633015,8.56430131,179.33,179.28,8.56430131]
[1730243633218,6.8683,179.35,179.31,2.7887]
[1730243633527,6.8683,179.35,179.26,8.56430131]
[1730243633528,8.56430131,179.32,179.26,8.56430131]
[1730243633731,8.56430131,179.3,179.26,8.56430131]
[1730243634524,8.56430131,179.32,179.29,2.7891]
[1730243634716,8.56430131,179.32,179.27,8.56430131]
[1730243635026,8.56430131,179.32,179.31,2.7888]
[1730243636634,4.08,179.33,179.29,8.56430131]
[1730243636830,12.64430131,179.34,179.29,8.56430131]
[1730243637035,8.56430131,179.33,179.29,8.56430131]
[1730243637529,8.56430131,179.33,179.32,2.7887]
[1730243641526,8.56430131,179.33,179.3,2.7889]
[1730243641727,8.56430131,179.31,179.3,2.7889]
[1730243642229,8.56430131,179.31,179.29,2.789]
[1730243642431,8.56430131,179.3,179.29,2.789]
[1730243642632,4.08,179.35,179.29,8.56430131]
[1730243642933,12.64430131,179.36,179.31,8.56430131]
[1730243643132,8.56430131,179.35,179.34,2.7884]
[1730243643340,11.35507031,179.35,179.34,2.7884]
[1730243643841,8.56430131,179.35,179.34,2.7884]
[1730243644233,11.4125659,179.35,179.34,2.7884]
[1730243645336,1.2449,179.4,179.36,2.788]
[1730243645545,180.20085163,179.43,179.35,8.56430131]
[1730243645746,8.56430131,179.42,179.37,8.56430131]
[1730243645943,8.56430131,179.42,179.41,2.7873]
[1730243651744,8.56430131,179.42,179.38,8.56430131]
[1730243651937,8.56430131,179.42,179.4,2.7874]
[1730243652950,8.56430131,179.42,179.38,8.56430131]
[1730243653142,8.56430131,179.42,179.39,2.7876]
[1730243653945,8.56430131,179.43,179.4,2.7874]
[1730243655946,8.56430131,179.43,179.37,8.56430131]
[1730243656153,8.56430131,179.43,179.34,4.08]
[1730243656154,8.56430131,179.39,179.34,8.56430131]
[1730243657254,8.56430131,179.39,179.35,8.56430131]
[1730243657960,8.56430131,179.39,179.37,2.7878]
[1730243659455,8.56430131,179.39,179.35,8.56430131]
[1730243659655,8.56430131,179.39,179.38,2.7877]
[1730243661149,8.56430131,179.39,179.32,2.4496]
[1730243661350,8.56430131,179.37,179.32,11.01390131]
[1730243661555,11.37558531,179.37,179.32,11.01390131]
[1730243661947,11.37558531,179.37,179.32,8.56430131]
[1730243662153,8.56430131,179.36,179.31,9.80260131]
[1730243662856,14.13932283,179.36,179.33,2.7884]
[1730243663846,18.21932283,179.36,179.33,2.7884]
[1730243665253,8.56430131,179.34,179.33,2.7884]
[1730243665759,8.56430131,179.34,179.29,8.56430131]
[1730243665963,8.56430131,179.33,179.28,1.3306]
[1730243666158,8.56430131,179.33,179.28,9.89490131]
[1730243666565,8.56430131,179.32,179.28,1.3306]
[1730243666762,8.56430131,179.29,179.27,1.2606]
[1730243666962,8.56430131,179.29,179.22,2.5056]
[1730243667164,2.7889,179.31,179.23,8.56430131]
[1730243667463,8.56430131,179.28,179.23,8.56430131]
[1730243667962,8.56430131,179.28,179.27,2.7893]
[1730243669163,8.56430131,179.3,179.29,2.789]
[1730243669364,8.56430131,179.3,179.24,8.56430131]
[1730243669565,4.08,179.32,179.24,8.56430131]
[1730243669566,8.56430131,179.28,179.24,8.56430131]
[1730243670265,8.56430131,179.28,179.27,2.7894]
[1730243672564,12.64430131,179.28,179.27,2.7894]
[1730243673961,12.64430131,179.28,179.22,3.7938]
[1730243674270,8.56430131,179.26,179.25,5.22812242]
[1730243674665,8.56430131,179.26,179.25,2.43832242]
[1730243675767,8.56430131,179.26,179.25,5.22812242]
[1730243676175,8.56430131,179.26,179.25,2.43832242]
[1730243676366,8.56430131,179.26,179.25,5.22812242]
[1730243677170,8.56430131,179.27,179.25,2.43832242]
[1730243677370,8.56430131,179.26,179.25,2.43832242]
[1730243677572,8.56430131,179.26,179.17,12.50970131]
[1730243677777,8.56430131,179.23,179.19,8.56430131]
[1730243678276,8.56430131,179.23,179.22,2.7902]
[1730243681175,4.08,179.24,179.23,2.7901]
[1730243681365,8.56430131,179.25,179.21,8.56430131]
[1730243681974,2.8455891,179.26,179.21,8.56430131]
[1730243682167,12.64430131,179.27,179.22,8.56430131]
[1730243682364,8.56430131,179.27,179.22,8.56430131]
[1730243682769,8.56430131,179.27,179.26,2.7896]
[1730243689188,4.08,179.29,179.22,8.56430131]
[1730243689485,4.08,179.29,179.28,2.7893]
[1730243690684,4.08,179.29,179.24,2.7899]
[1730243690889,8.56430131,179.27,179.22,8.56430131]
[1730243691384,8.56430131,179.27,179.26,2.7896]
[1730243696175,11.29915472,179.27,179.2,1.3225]
[1730243696375,8.56430131,179.21,179.2,1.3225]
[1730243697180,8.56430131,179.21,179.2,4.113]
[1730243698784,8.56430131,179.22,179.2,1.3225]
[1730243698985,8.56430131,179.22,179.21,2.7904]
[1730243699987,6.92538638,179.25,179.24,2.7899]
[1730243700182,15.48968769,179.25,179.24,2.7899]
[1730243702793,6.92538638,179.25,179.24,2.7899]
[1730243702980,12.64430131,179.25,179.24,2.7899]
[1730243703892,8.56430131,179.25,179.24,2.7899]
[1730243704793,2.789,179.3,179.27,2.7893]
[1730243704992,4.08,179.27,179.21,8.56430131]
[1730243705294,8.56430131,179.25,179.2,9.88680131]
[1730243705593,8.56430131,179.25,179.24,2.7899]
[1730243710090,8.56430131,179.25,179.2,9.88680131]
[1730243710292,8.56430131,179.23,179.22,2.7901]
[1730243711990,8.56430131,179.23,179.21,2.7904]
[1730243712199,8.56430131,179.22,179.21,2.7904]
[1730243716002,11.35460131,179.22,179.19,2.7907]
[1730243716301,8.56430131,179.2,179.19,2.7907]
[1730243718697,2.7660202,179.27,179.16,8.56430131]
[1730243718904,8.56430131,179.24,179.18,8.56430131]
[1730243719102,11.40018906,179.24,179.18,8.56430131]
[1730243719295,11.40018906,179.24,179.19,14.74781738]
[1730243719501,4.08,179.26,179.24,2.7898]
[1730243719702,8.56430131,179.25,179.24,2.7898]
[1730243719898,11.42085229,179.25,179.24,6.4774377]
[1730243720098,1.53912744,179.26,179.24,22.41528842]
[1730243720293,8.56430131,179.25,179.19,8.56430131]
[1730243720495,11.32073304,179.25,179.2,30.74211383]
[1730243720799,2.7893,179.29,179.21,30.74212018]
[1730243721004,8.56430131,179.26,179.22,30.74212018]
[1730243721301,8.56430131,179.26,179.23,30.74212018]
[1730243721505,8.56430131,179.26,179.25,2.7898]
[1730243721804,8.56430131,179.26,179.25,22.91592501]
[1730243722299,16.72,179.37,179.25,28.69042632]
[1730243722492,8.56430131,179.3,179.26,30.74144723]
[1730243722696,8.56430131,179.3,179.27,30.74144723]
[1730243723003,8.56430131,179.3,179.28,20.12612501]
[1730243723199,8.56430131,179.3,179.29,20.12612501]
[1730243724105,8.56430131,179.3,179.29,22.91522501]
[1730243724299,8.56430131,179.3,179.29,21.51905304]
[1730243724495,8.56430131,179.32,179.29,20.12576319]
[1730243724693,8.56430131,179.32,179.31,2.7888]
[1730243724894,2.7882,179.35,179.31,20.12576319]
[1730243724895,8.56430131,179.35,179.31,20.12576319]
[1730243725099,8.56430131,179.4,179.36,2.788]
[1730243725402,8.56430131,179.4,179.37,20.12329082]
[1730243725704,12.64430131,179.42,179.38,15.93726632]
[1730243725908,12.64430131,179.42,179.39,15.93726632]
[1730243726103,12.64430131,179.42,179.4,15.93726632]
[1730243726298,12.64430131,179.42,179.41,15.93726632]
[1730243727004,12.64430131,179.42,179.35,8.56430131]
[1730243727205,8.56430131,179.4,179.35,8.56430131]
[1730243727708,8.56430131,179.41,179.38,2.7876]
[1730243728096,8.56430131,179.41,179.36,8.56430131]
[1730243728097,8.56430131,179.41,179.37,2.7878]
[1730243728404,8.56430131,179.41,179.33,1.2878]
[1730243728606,8.56430131,179.41,179.36,11.35220131]
[1730243728901,8.56430131,179.4,179.36,8.56430131]
[1730243729306,8.56430131,179.41,179.36,8.56430131]
[1730243730108,8.56430131,179.39,179.34,8.56430131]
[1730243731398,8.56430131,179.38,179.33,1.2878]
[1730243731711,8.56430131,179.35,179.3,8.56430131]
[1730243731904,8.56430131,179.35,179.32,2.7886]
[1730243732099,8.56430131,179.36,179.28,4.08]
[1730243732410,4.08,179.38,179.33,8.56430131]
[1730243732610,8.56430131,179.37,179.35,2.7882]
[1730243734413,8.56430131,179.36,179.35,2.7882]
[1730243734916,8.56430131,179.36,179.32,8.56430131]
[1730243735103,8.56430131,179.36,179.34,2.7883]
[1730243735300,8.56430131,179.35,179.27,1.3196]
[1730243735515,8.56430131,179.32,179.28,2.7892]
[1730243735708,8.56430131,179.32,179.27,9.88390131]
[1730243736103,8.56430131,179.32,179.31,2.7888]
[1730243736303,8.56430131,179.34,179.31,2.7888]
[1730243736609,8.56430131,179.33,179.31,2.7888]
[1730243737609,8.56430131,179.33,179.3,2.7889]
[1730243737813,8.56430131,179.33,179.27,9.88390131]
[1730243738405,2.7881,179.36,179.32,2.7885]
[1730243738605,8.56430131,179.34,179.29,8.56430131]
[1730243739416,8.56430131,179.34,179.33,2.7885]
[1730243740010,8.56430131,179.34,179.27,1.3196]
[1730243740209,8.56430131,179.32,179.31,2.7888]
[1730243741304,8.56430131,179.32,179.27,9.88390131]
[1730243741824,8.56430131,179.31,179.27,1.3196]
[1730243742825,8.56430131,179.31,179.3,2.789]
[1730243750517,8.56430131,179.31,179.27,1.3196]
[1730243750819,8.56430131,179.31,179.29,2.7891]
[1730243752214,2.7887,179.32,179.29,2.7891]
[1730243752215,8.56430131,179.3,179.29,2.7891]
[1730243752826,8.56430131,179.3,179.27,1.3196]
[1730243753027,8.56430131,179.3,179.28,2.7892]
[1730243756121,8.56430131,179.3,179.29,2.7891]
[1730243758513,8.56430131,179.3,179.28,2.7891]
[1730243759423,8.56430131,179.3,179.27,1.3196]
[1730243759623,8.56430131,179.3,179.29,2.7891]
[1730243764527,11.35330131,179.3,179.28,2.7893]
[1730243764732,8.56430131,179.29,179.28,2.7893]
[1730243764927,8.56430131,179.29,179.22,4.08]
[1730243765232,2.7892,179.29,179.27,2.7894]
[1730243766233,8.56430131,179.28,179.26,2.7896]
[1730243766433,11.35390131,179.27,179.2,3.7579]
[1730243766630,8.56430131,179.24,179.2,2.5407]
[1730243766929,8.56430131,179.23,179.2,1.2983]
[1730243767134,4.08,179.27,179.2,1.2983]
[1730243767135,8.56430131,179.21,179.2,1.2983]
[1730243767525,2.81552015,179.24,179.2,1.2983]
[1730243767729,8.56430131,179.26,179.21,8.56430131]
[1730243768231,11.33683642,179.25,179.21,8.56430131]
[1730243768724,11.33683642,179.25,179.2,1.2983]
[1730243768926,11.33683642,179.25,179.23,2.79]
[1730243769346,11.33683642,179.25,179.2,1.2983]
[1730243769628,8.56430131,179.24,179.22,2.7902]
[1730243770136,8.56430131,179.24,179.21,2.7904]
[1730243770137,11.35430131,179.24,179.21,2.7904]
[1730243774029,8.56430131,179.22,179.21,2.7904]
[1730243774433,8.56430131,179.22,179.17,8.56430131]
[1730243774434,11.35460131,179.22,179.17,2.7909]
[1730243774632,8.56430131,179.19,179.16,1.274]
[1730243774837,8.56430131,179.19,179.15,2.6655]
[1730243775229,8.56430131,179.19,179.18,2.7909]
[1730243775637,15.43510131,179.19,179.16,2.791]
[1730243775834,8.56430131,179.17,179.16,2.791]
[1730243776029,8.56430131,179.17,179.14,6.41209005]
[1730243776230,8.56430131,179.15,178.95,5.5888]
[1730243776435,8.56430131,179.1,179.06,1.3402]
[1730243776835,8.56430131,179.1,179.09,2.7923]
[1730243778133,8.56430131,179.1,179.06,1.3402]
[1730243778330,8.56430131,179.09,179.08,2.7923]
[1730243778538,8.56430131,179.09,179.04,2.4702]
[1730243778733,4.08,179.12,179.04,2.4702]
[1730243778734,8.56430131,179.07,179.04,2.4702]
[1730243780043,8.56430131,179.07,179.06,2.7927]
[1730243783940,8.56430131,179.07,179.04,2.793]
[1730243784242,8.56430131,179.05,179.04,2.793]
[1730243785242,8.56430131,179.06,179.05,2.7929]
[1730243788646,8.56430131,179.09,179.03,16.04025759]
[1730243788842,12.68430131,179.09,179.08,2.7923]
[1730243792053,12.68430131,179.09,179.03,7.47595628]
[1730243792355,4.12,179.09,179.07,2.7926]
[1730243792743,2.7921,179.1,179.07,2.7926]
[1730243792949,4.12,179.09,179.07,2.7926]
[1730243793148,2.7921,179.1,179.07,2.7926]
[1730243793347,4.12,179.09,179.07,2.7926]
[1730243794042,8.56430131,179.08,179.07,2.7926]
[1730243794448,8.56430131,179.08,179.03,7.47595628]
[1730243794449,12.68430131,179.08,179.06,2.7927]
[1730243794648,8.56430131,179.07,179.06,2.7927]
[1730243795947,8.56430131,179.07,179.05,2.7928]
[1730243796152,8.56430131,179.06,179.05,2.7928]
[1730243797945,8.56430131,179.06,179.03,6.19925628]
[1730243798152,8.56430131,179.04,178.92,8.56430131]
[1730243798357,8.56430131,178.97,178.93,3.17999837]
[1730243798558,8.56430131,178.97,178.95,2.7943]
[1730243799055,8.56430131,178.96,178.93,3.17999837]
[1730243799262,4.12,178.99,178.93,3.17999837]
[1730243799263,8.56430131,178.94,178.93,3.17999837]
[1730243800050,8.56430131,178.94,178.93,5.97469837]
[1730243801057,12.68430131,178.94,178.78,4.12]
[1730243801259,8.56430131,178.88,178.83,11.14570131]
[1730243802262,8.56430131,178.88,178.87,2.7957]
[1730243802465,4.12,178.9,178.83,11.14570131]
[1730243802466,4.12,178.9,178.83,2.5814]
[1730243802652,4.12,178.91,178.84,13.42508]
[1730243802848,13.42508,178.97,178.92,2.7948]
[1730243802849,4.12,178.93,178.92,2.7948]
[1730243803255,13.42508,178.97,178.84,13.42508]
[1730243803450,13.42508,178.97,178.87,13.42508]
[1730243803660,4.12,178.96,178.88,1.2476]
[1730243803857,4.12,178.96,178.95,2.7944]
[1730243804255,4.12,178.97,178.88,1.2476]
[1730243804468,4.12,178.97,178.9,2.7951]
[1730243804653,73.78508,178.99,178.88,1.2476]
[1730243804858,4.12,178.98,178.89,13.42508]
[1730243805058,4.12,178.98,178.91,2.795]
[1730243805360,4.12,178.98,178.89,13.42508]
[1730243805560,4.12,178.98,178.9,1.3276]
[1730243806064,4.12,178.98,178.91,1.3351]
[1730243807265,4.12,178.98,178.97,2.7941]
[1730243808063,13.42508,179.01,178.93,2.7947]
[1730243808362,13.42508,179.01,178.91,1.3351]
[1730243808556,13.42508,179.01,178.98,2.794]
[1730243808761,13.42508,179.03,178.91,14.76018]
[1730243808959,4.12,179.02,178.91,18.88018]
[1730243809668,4.12,179.02,179.0,2.7935]
[1730243810068,4.12,179.02,178.91,18.88018]
[1730243810269,4.12,179.02,179.0,2.7936]
[1730243810562,18.98471329,179.03,179.0,2.7936]
[1730243810767,4.12,179.01,179.0,2.7936]
[1730243817165,17.54508,179.01,178.91,18.88018]
[1730243818375,17.54508,179.01,178.99,2.7938]
[1730243818979,20.33858,179.01,178.98,2.7939]
[1730243819872,17.54508,179.01,178.91,1.3351]
[1730243820377,13.42508,178.98,178.91,1.3351]
[1730243820679,4.18,178.97,178.91,1.3351]
[1730243821575,4.18,178.97,178.95,2.7943]
[1730243821771,4.18,178.97,178.91,1.3351]
[1730243823074,4.18,178.97,178.95,2.7943]
[1730243824587,8.59690402,178.96,178.95,2.7943]
[1730243824982,8.59690402,178.96,178.94,2.7945]
[1730243825278,8.59690402,178.95,178.94,2.7945]
[1730243832196,8.59690402,178.95,178.93,2.7947]
[1730243832497,8.59690402,178.94,178.93,2.7947]
[1730243834202,12.77690402,178.94,178.93,2.7947]
[1730243836901,12.77690402,178.94,178.92,2.7949]
[1730243837198,8.59690402,178.93,178.92,2.7949]
[1730243838598,11.44870469,178.93,178.89,2.7953]
[1730243838911,8.59690402,178.9,178.89,2.7953]
[1730243839094,12.77690402,178.9,178.89,2.7953]
[1730243841300,2.7750719,178.91,178.86,1.2195]
[1730243841598,2.2848,179.0,178.9,8.59690402]
[1730243841599,8.59690402,178.95,178.9,8.59690402]
[1730243841802,2.8410851,178.94,178.9,8.59690402]
[1730243842002,2.8410851,178.94,178.93,2.7948]
[1730243843796,2.8410851,178.94,178.9,8.59690402]
[1730243843797,8.59690402,178.96,178.91,8.59690402]
[1730243843998,4.18,178.95,178.91,8.59690402]
[1730243844201,8.59690402,178.97,178.91,8.59690402]
[1730243844501,8.59690402,178.99,178.98,2.794]
[1730243844800,2.3787,179.05,178.94,8.59690402]
[1730243845002,180.57082766,179.07,178.97,8.59690402]
[1730243845202,180.57082766,179.07,178.93,2.5784]
[1730243845203,8.59690402,179.04,178.98,8.59690402]
[1730243845512,8.59690402,179.04,179.02,2.7932]
[1730243846310,8.59690402,179.04,178.95,8.59690402]
[1730243846495,4.18,179.06,178.93,2.5784]
[1730243846496,8.59690402,178.99,178.93,2.5784]
[1730243846691,8.59690402,178.97,178.96,2.7943]
[1730243847704,8.59690402,178.99,178.93,11.17530402]
[1730243847895,12.77690402,179.0,178.99,2.7938]
[1730243848903,12.77690402,179.0,178.93,11.17530402]
[1730243849101,8.59690402,178.97,178.96,2.7943]
[1730243851300,8.59690402,178.97,178.92,14.06080402]
[1730243851301,2.76416993,178.97,178.92,1.2839]
[1730243851504,8.59690402,178.94,178.92,1.2839]
[1730243852102,8.59690402,178.94,178.93,2.7948]
[1730243852304,8.59690402,178.94,178.86,6.6862]
[1730243852517,8.59690402,178.94,178.92,2.7948]
[1730243852904,4.14,178.96,178.88,8.59690402]
[1730243853207,6.9343,178.96,178.93,2.7947]
[1730243853414,8.59690402,178.94,178.93,2.7947]
[1730243853904,12.73690402,178.95,178.89,8.59690402]
[1730243854111,8.59690402,178.95,178.91,8.59690402]
[1730243854511,11.78363563,179.05,178.92,8.59690402]
[1730243854706,11.78363563,179.05,178.93,11.22450402]
[1730243854707,8.59690402,178.99,178.93,11.22450402]
[1730243854903,8.59690402,179.01,178.94,8.59690402]
[1730243855103,12.73690402,179.02,178.98,8.59690402]
[1730243855300,8.59690402,179.02,178.98,8.59690402]
[1730243855622,8.59690402,179.02,179.01,2.7935]
[1730243856613,180.57082766,179.07,179.05,2.7928]
[1730243856914,8.59690402,179.05,179.0,8.59690402]
[1730243857315,8.59690402,179.05,179.04,2.793]
[1730243858708,29.62745671,179.16,179.04,8.59690402]
[1730243858912,8.59690402,179.09,179.04,8.59690402]
[1730243859111,8.59690402,179.08,179.04,8.59690402]
[1730243859411,8.59690402,179.08,179.07,2.7924]
[1730243859814,2.81183977,179.12,179.04,8.59690402]
[1730243860113,8.59690402,179.1,179.08,2.7923]
[1730243860414,10.50615671,179.18,179.1,2.7921]
[1730243860415,13.4072783,179.14,179.1,2.7921]
[1730243860616,13.4072783,179.14,179.05,1.2316]
[1730243860617,4.14,179.13,179.05,1.2316]
[1730243860815,13.4072783,179.12,179.05,1.2316]
[1730243861010,13.4072783,179.12,179.08,2.7923]
[1730243861011,16.1990783,179.12,179.08,2.7923]
[1730243862118,19.04725036,179.12,179.08,2.7923]
[1730243863017,16.1990783,179.12,179.05,1.2316]
[1730243863220,2.7918,179.12,179.09,2.7922]
[1730243864119,10.51431077,179.13,179.06,13.4072783]
[1730243864414,4.14,179.15,179.06,13.4072783]
[1730243864610,6.9313,179.15,179.11,2.7918]
[1730243864810,2.7913,179.15,179.11,2.7918]
[1730243865010,6.9313,179.15,179.11,2.7918]
[1730243865317,4.14,179.15,179.12,2.7917]
[1730243866417,6.9313,179.15,179.12,2.7917]
[1730243868217,4.14,179.15,179.06,17.5472783]
[1730243868513,2.7915,179.14,179.1,2.792]
[1730243868716,2.7915,179.14,179.06,17.5472783]
[1730243870023,6.9113,179.15,179.06,17.5472783]
[1730243870629,6.9113,179.15,179.11,2.7918]
[1730243871219,6.9113,179.15,179.08,2.7923]
[1730243871518,6.9113,179.15,179.06,17.5472783]
[1730243872023,6.9113,179.15,179.11,2.7918]
[1730243873922,6.9113,179.15,179.06,17.5472783]
[1730243874823,6.9113,179.15,179.11,2.7918]
[1730243875824,2.7909,179.18,179.15,2.7912]
[1730243876018,10.49204922,179.19,179.11,2.5743]
[1730243876218,10.49204922,179.19,179.12,1.3016]
[1730243876219,14.61204922,179.19,179.12,1.3016]
[1730243876425,6.9107,179.19,179.16,2.7911]
[1730243876620,17.39970106,179.19,179.16,2.7911]
[1730243876816,4.12,179.19,179.12,1.3016]
[1730243877020,17.5272783,179.19,179.12,1.3016]
[1730243877726,2.7912,179.16,179.12,1.3016]
[1730243878425,17.5272783,179.19,179.11,1.3176]
[1730243878630,2.7913,179.16,179.12,2.7917]
[1730243879534,2.7913,179.16,179.13,2.7916]
[1730243880230,2.7913,179.16,179.11,1.3176]
[1730243880231,6.9107,179.19,179.12,13.4072783]
[1730243880527,8.58557558,179.17,179.12,8.58557558]
[1730243880734,8.58557558,179.17,179.15,2.7913]
[1730243881733,2.7909,179.18,179.15,2.7913]
[1730243882128,6.8706,179.2,179.17,2.791]
[1730243882331,8.58557558,179.19,179.17,2.791]
[1730243882531,6.8706,179.2,179.17,2.791]
[1730243882532,2.7906,179.2,179.17,2.791]
[1730243882729,6.8706,179.2,179.17,2.791]
[1730243882923,9.72794876,179.2,179.17,2.791]
[1730243884826,5.64794876,179.2,179.17,2.791]
[1730243885033,4.08,179.22,179.14,13.41130989]
[1730243885234,13.41130989,179.27,179.16,13.41130989]
[1730243885427,4.08,179.26,179.16,13.41130989]
[1730243885641,2.79,179.24,179.21,2.7903]
[1730243886435,4.08,179.26,179.16,13.41130989]
[1730243886735,2.7903,179.22,179.15,4.08]
[1730243887733,2.7903,179.22,179.19,2.7906]
[1730243889430,2.7907,179.2,179.14,4.08]
[1730243890132,2.7907,179.2,179.12,2.6617]
[1730243890133,2.7907,179.2,179.17,2.7909]